bitfinex/quotes_SOLUSD_20241028
["timestamp","ask_amount","ask_price","bid_price","bid_amount"]
[1730077748503,5.6618,176.62,176.51,0.1]
[1730077748504,5.6618,176.62,176.58,8.88183173]
[1730077749387,23.2376,176.63,176.58,8.88183173]
[1730077749604,28.8992,176.63,176.58,8.88183173]
[1730077750584,28.8992,176.63,176.59,8.88183173]
[1730077750905,28.8992,176.63,176.58,8.88183173]
[1730077753885,28.8992,176.63,176.59,8.88183173]
[1730077754799,28.8992,176.63,176.58,8.88183173]
[1730077754992,37.78103173,176.63,176.5,24.127864]
[1730077755303,37.78103173,176.63,176.57,8.88183173]
[1730077755510,37.78103173,176.63,176.56,8.88183173]
[1730077755511,8.88183173,176.61,176.56,8.88183173]
[1730077755685,8.88183173,176.61,176.55,8.88183173]
[1730077755885,8.88183173,176.61,176.49,35.52732692]
[1730077755886,8.88183173,176.6,176.54,8.88183173]
[1730077756104,5.6628,176.59,176.55,8.88183173]
[1730077757107,5.1628,176.59,176.55,8.88183173]
[1730077758097,8.88183173,176.61,176.55,8.88183173]
[1730077758392,5.6625,176.6,176.55,8.88183173]
[1730077758591,5.1625,176.6,176.55,8.88183173]
[1730077758997,14.04433173,176.6,176.54,8.88183173]
[1730077760707,14.04433173,176.6,176.55,8.88183173]
[1730077760708,5.1625,176.6,176.55,8.88183173]
[1730077763197,14.04433173,176.6,176.54,8.88183173]
[1730077764508,8.88183173,176.59,176.47,5.89153972]
[1730077764722,8.88183173,176.58,176.52,8.88183173]
[1730077765423,8.88183173,176.59,176.53,8.88183173]
[1730077766105,5.6631,176.58,176.53,8.88183173]
[1730077766799,8.88183173,176.56,176.51,8.88183173]
[1730077767310,8.88183173,176.53,176.48,8.88183173]
[1730077768186,14.54673173,176.53,176.48,8.88183173]
[1730077768386,14.54673173,176.53,176.44,24.027864]
[1730077768608,14.54673173,176.53,176.48,8.88183173]
[1730077769215,5.6649,176.53,176.49,8.88183173]
[1730077769405,8.88183173,176.55,176.49,8.88183173]
[1730077769607,5.6644,176.54,176.49,8.88183173]
[1730077771215,14.54623173,176.54,176.49,8.88183173]
[1730077771618,5.6644,176.54,176.5,8.88183173]
[1730077772819,5.6644,176.54,176.49,8.88183173]
[1730077773818,5.6644,176.54,176.5,8.88183173]
[1730077775619,14.54623173,176.54,176.49,8.88183173]
[1730077778023,5.6644,176.54,176.49,8.88183173]
[1730077779023,21.323,176.57,176.44,24.027864]
[1730077779024,26.9865,176.57,176.52,8.88183173]
[1730077779201,26.9865,176.57,176.53,8.88183173]
[1730077779522,26.9865,176.57,176.52,8.88183173]
[1730077780200,21.323,176.57,176.54,8.88183173]
[1730077783127,8.88183173,176.55,176.44,5.88914357]
[1730077783431,8.88183173,176.53,176.48,8.88183173]
[1730077784022,14.54663173,176.53,176.48,8.88183173]
[1730077785015,8.88183173,176.54,176.48,8.88183173]
[1730077785222,8.88183173,176.54,176.49,8.88183173]
[1730077786022,26.9865,176.57,176.52,8.88183173]
[1730077786229,35.86833173,176.57,176.52,8.88183173]
[1730077789225,26.9865,176.57,176.52,8.88183173]
[1730077791519,35.86833173,176.57,176.51,8.88183173]
[1730077793331,8.88183173,176.55,176.45,24.027864]
[1730077793508,8.88183173,176.55,176.49,8.88183173]
[1730077793828,8.88183173,176.56,176.5,8.88183173]
[1730077794819,5.6641,176.55,176.5,8.88183173]
[1730077795634,14.54593173,176.55,176.5,8.88183173]
[1730077796432,14.54593173,176.55,176.45,0.25098]
[1730077796640,14.54593173,176.55,176.5,8.88183173]
[1730077800529,14.54593173,176.55,176.49,8.88183173]
[1730077800912,14.54593173,176.55,176.5,8.88183173]
[1730077801417,14.54593173,176.55,176.49,8.88183173]
[1730077801615,8.88183173,176.54,176.48,8.88183173]
[1730077801842,8.88183173,176.54,176.49,8.88183173]
[1730077802829,14.54653173,176.54,176.49,8.88183173]
[1730077803226,5.6647,176.54,176.49,8.88183173]
[1730077804930,14.54653173,176.54,176.49,8.88183173]
[1730077805137,8.88183173,176.52,176.46,8.88183173]
[1730077806835,14.54683173,176.53,176.47,8.88183173]
[1730077807018,14.54683173,176.53,176.42,24.027864]
[1730077807019,8.88183173,176.54,176.49,8.88183173]
[1730077807216,14.54633173,176.54,176.49,8.88183173]
[1730077807418,5.6645,176.54,176.49,8.88183173]
[1730077808342,8.88183173,176.53,176.48,8.88183173]
[1730077808914,8.88183173,176.52,176.47,8.88183173]
[1730077809130,8.88183173,176.53,176.48,8.88183173]
[1730077809542,14.54663173,176.53,176.48,8.88183173]
[1730077810118,8.88183173,176.52,176.47,8.88183173]
[1730077811244,14.54713173,176.52,176.47,8.88183173]
[1730077811428,14.54713173,176.52,176.41,5.88849023]
[1730077811429,8.88183173,176.49,176.41,5.88849023]
[1730077811627,8.88183173,176.49,176.43,8.88183173]
[1730077811836,8.88183173,176.48,176.43,8.88183173]
[1730077812346,8.88183173,176.47,176.42,8.88183173]
[1730077813134,14.54863173,176.47,176.42,8.88183173]
[1730077813832,21.4938,176.51,176.42,8.88183173]
[1730077813833,8.88183173,176.48,176.42,8.88183173]
[1730077814039,21.4938,176.51,176.36,5.88895791]
[1730077814040,8.88183173,176.49,176.43,8.88183173]
[1730077814542,14.54753173,176.5,176.44,8.88183173]
[1730077814920,8.88183173,176.5,176.44,8.88183173]
[1730077815136,27.1592,176.51,176.46,8.88183173]
[1730077815334,36.04103173,176.51,176.46,8.88183173]
[1730077816149,8.88183173,176.5,176.45,8.88183173]
[1730077816444,8.88183173,176.5,176.44,8.88183173]
[1730077817343,14.54763173,176.5,176.44,8.88183173]
[1730077820550,5.6658,176.5,176.45,8.88183173]
[1730077820936,14.54763173,176.5,176.45,8.88183173]
[1730077821338,14.54763173,176.5,176.37,24.027864]
[1730077821538,8.88183173,176.49,176.44,8.88183173]
[1730077821750,8.88183173,176.48,176.42,8.88183173]
[1730077822941,14.54823173,176.48,176.42,8.88183173]
[1730077823542,8.88183173,176.46,176.37,5.88787531]
[1730077823743,8.88183173,176.45,176.39,8.88183173]
[1730077824057,8.88183173,176.43,176.36,0.98157564]
[1730077824230,8.88183173,176.42,176.36,9.86340737]
[1730077824425,8.88183173,176.42,176.36,8.88183173]
[1730077824853,14.55063173,176.41,176.35,8.88183173]
[1730077825233,14.55063173,176.41,176.34,5.88903677]
[1730077825234,8.88183173,176.39,176.34,14.7708685]
[1730077825640,8.88183173,176.39,176.34,5.88903677]
[1730077825839,8.88183173,176.39,176.33,8.88183173]
[1730077825840,8.88183173,176.37,176.31,8.88183173]
[1730077826945,8.88183173,176.36,176.31,8.88183173]
[1730077827332,23.1322,176.38,176.32,8.88183173]
[1730077827537,23.1322,176.38,176.34,8.88183173]
[1730077827957,23.1322,176.38,176.35,8.88183173]
[1730077828147,14.55063173,176.41,176.36,8.88183173]
[1730077828736,14.55063173,176.41,176.35,8.88183173]
[1730077829357,8.88183173,176.4,176.35,8.88183173]
[1730077830263,8.88183173,176.4,176.34,8.88183173]
[1730077831357,8.88183173,176.4,176.35,8.88183173]
[1730077833958,21.5474,176.42,176.37,8.88183173]
[1730077834160,21.5474,176.42,176.38,8.88183173]
[1730077835361,21.5474,176.42,176.37,8.88183173]
[1730077836062,30.42923173,176.42,176.37,8.88183173]
[1730077836446,36.09753173,176.42,176.36,8.88183173]
[1730077837665,8.88183173,176.39,176.3,29.91606385]
[1730077837864,8.88183173,176.38,176.32,8.88183173]
[1730077838747,8.88183173,176.38,176.28,5.88919333]
[1730077838949,8.88183173,176.38,176.32,8.88183173]
[1730077839673,5.6698,176.37,176.32,8.88183173]
[1730077840573,14.55163173,176.37,176.31,8.88183173]
[1730077841364,8.88183173,176.36,176.31,8.88183173]
[1730077842744,14.55163173,176.37,176.31,8.88183173]
[1730077842949,5.6698,176.37,176.32,8.88183173]
[1730077843365,8.88183173,176.38,176.32,8.88183173]
[1730077843564,8.88183173,176.38,176.33,8.88183173]
[1730077843772,8.88183173,176.39,176.34,8.88183173]
[1730077845268,8.88183173,176.4,176.34,8.88183173]
[1730077845458,8.88183173,176.4,176.29,0.25098]
[1730077845761,8.88183173,176.39,176.33,8.88183173]
[1730077846262,8.88183173,176.37,176.32,8.88183173]
[1730077846568,8.88183173,176.38,176.32,8.88183173]
[1730077846952,20.0,176.4,176.35,8.88183173]
[1730077847147,8.88183173,176.39,176.34,8.88183173]
[1730077847358,8.88183173,176.39,176.33,8.88183173]
[1730077847575,34.55103173,176.4,176.34,8.88183173]
[1730077847775,34.55103173,176.4,176.35,8.88183173]
[1730077848269,14.55103173,176.4,176.35,8.88183173]
[1730077848469,5.6692,176.4,176.35,8.88183173]
[1730077848869,5.6692,176.4,176.36,8.88183173]
[1730077850360,27.2159,176.42,176.36,8.88183173]
[1730077850573,36.09773173,176.42,176.37,8.88183173]
[1730077850764,15.4705,176.42,176.39,8.88183173]
[1730077851077,15.4705,176.42,176.4,8.88183173]
[1730077851279,15.4705,176.42,176.39,8.88183173]
[1730077851575,15.4705,176.42,176.38,8.88183173]
[1730077852166,15.4705,176.42,176.39,8.88183173]
[1730077853984,6.2055,176.46,176.41,8.88183173]
[1730077854187,15.1177,176.48,176.45,8.88183173]
[1730077854476,15.1177,176.48,176.4,35.52732692]
[1730077854655,15.1177,176.48,176.41,0.25098]
[1730077854861,23.99953173,176.48,176.43,8.88183173]
[1730077855061,8.88183173,176.47,176.41,8.88183173]
[1730077855262,8.88183173,176.46,176.4,8.88183173]
[1730077856568,14.54863173,176.47,176.41,8.88183173]
[1730077858183,8.88183173,176.46,176.4,8.88183173]
[1730077860897,14.54883173,176.46,176.4,8.88183173]
[1730077861083,6.3961,176.45,176.4,8.88183173]
[1730077862070,12.0634,176.45,176.4,8.88183173]
[1730077862782,20.94523173,176.45,176.4,8.88183173]
[1730077863591,6.3961,176.45,176.4,8.88183173]
[1730077863789,20.0,176.47,176.42,8.88183173]
[1730077864092,15.1177,176.48,176.43,8.88183173]
[1730077864384,15.1177,176.48,176.46,8.88183173]
[1730077864778,6.085,176.49,176.47,8.88183173]
[1730077864982,5.6651,176.52,176.48,8.88183173]
[1730077865379,21.4528,176.53,176.49,8.88183173]
[1730077865599,21.4528,176.53,176.51,8.88183173]
[1730077867385,15.3678,176.53,176.51,8.88183173]
[1730077867588,5.6641,176.55,176.51,8.88183173]
[1730077867773,23.0813,176.57,176.52,8.88183173]
[1730077867985,28.7448,176.57,176.53,8.88183173]
[1730077868293,23.0813,176.57,176.55,8.88183173]
[1730077868790,23.0813,176.57,176.53,8.88183173]
[1730077869671,23.0813,176.57,176.54,8.88183173]
[1730077869879,23.0813,176.57,176.55,8.88183173]
[1730077870075,5.6637,176.56,176.51,8.88183173]
[1730077870277,14.54553173,176.56,176.5,8.88183173]
[1730077871373,14.54553173,176.56,176.51,8.88183173]
[1730077871773,5.6637,176.56,176.52,8.88183173]
[1730077872290,5.6637,176.56,176.51,8.88183173]
[1730077873692,5.6637,176.56,176.52,8.88183173]
[1730077874072,23.0813,176.57,176.53,8.88183173]
[1730077874272,23.0813,176.57,176.52,8.88183173]
[1730077874492,28.7449,176.57,176.52,8.88183173]
[1730077875469,28.7449,176.57,176.53,8.88183173]
[1730077875774,37.62673173,176.57,176.51,8.88183173]
[1730077876184,37.62673173,176.57,176.45,24.027864]
[1730077876185,8.88183173,176.55,176.45,0.25098]
[1730077876492,8.88183173,176.55,176.5,8.88183173]
[1730077876693,8.88183173,176.55,176.45,0.12549]
[1730077876909,8.88183173,176.55,176.49,8.88183173]
[1730077877192,8.88183173,176.55,176.4,36.12732692]
[1730077877193,8.88183173,176.53,176.47,8.88183173]
[1730077877375,5.665,176.52,176.47,8.88183173]
[1730077877574,5.665,176.52,176.48,8.88183173]
[1730077878192,5.665,176.52,176.49,8.88183173]
[1730077878977,8.88183173,176.54,176.49,8.88183173]
[1730077879188,5.6647,176.53,176.48,8.88183173]
[1730077880001,8.88183173,176.52,176.47,8.88183173]
[1730077880208,8.88183173,176.52,176.46,8.88183173]
[1730077881197,5.6654,176.51,176.47,8.88183173]
[1730077882282,5.665,176.52,176.47,8.88183173]
[1730077883388,8.88183173,176.52,176.47,8.88183173]
[1730077884391,5.6654,176.51,176.47,8.88183173]
[1730077884703,14.54683173,176.53,176.48,8.88183173]
[1730077884900,5.665,176.53,176.48,8.88183173]
[1730077887682,5.665,176.53,176.42,0.12549]
[1730077887683,5.6618,176.62,176.52,8.88183173]
[1730077887882,28.5901761,176.65,176.61,8.88183173]
[1730077888104,28.5901761,176.65,176.53,0.25098]
[1730077888105,22.9291761,176.65,176.63,8.88183173]
[1730077889098,22.9291761,176.65,176.62,8.88183173]
[1730077890512,22.9291761,176.65,176.62,13.86767148]
[1730077892189,22.9291761,176.65,176.63,13.86767148]
[1730077894595,28.5900761,176.65,176.63,13.86767148]
[1730077895107,28.5900761,176.65,176.61,13.86767148]
[1730077895312,42.45774758,176.65,176.6,13.86767148]
[1730077895494,28.5900761,176.65,176.61,13.86767148]
[1730077901196,13.86767148,176.64,176.5,24.127864]
[1730077901401,42.45774758,176.65,176.59,13.86767148]
[1730077901702,42.45774758,176.65,176.6,13.86767148]
[1730077906412,28.5900761,176.65,176.6,13.86767148]
[1730077910726,42.45774758,176.65,176.6,13.86767148]
[1730077911726,28.5900761,176.65,176.6,13.86767148]
[1730077911909,42.45774758,176.65,176.6,13.86767148]
[1730077912410,37.46774862,176.65,176.6,8.87767252]
[1730077913011,37.46774862,176.65,176.5,24.227864]
[1730077913331,37.46774862,176.65,176.6,8.87767252]
[1730077914124,37.46774862,176.65,176.5,24.227864]
[1730077914125,20.0,176.64,176.58,8.87767252]
[1730077914329,8.87767252,176.63,176.57,8.87767252]
[1730077914543,28.87767252,176.6,176.55,8.87767252]
[1730077914834,20.0,176.6,176.57,8.87767252]
[1730077915227,20.0,176.6,176.56,8.87767252]
[1730077915424,20.0,176.61,176.56,8.87767252]
[1730077915727,20.0,176.6,176.56,8.87767252]
[1730077916314,28.87767252,176.6,176.55,8.87767252]
[1730077916513,8.87767252,176.56,176.49,5.89447492]
[1730077916726,8.87767252,176.54,176.49,8.87767252]
[1730077917041,8.87767252,176.55,176.49,8.87767252]
[1730077917709,8.87767252,176.55,176.5,0.12549]
[1730077917937,8.87767252,176.55,176.5,9.12865252]
[1730077918116,14.54167252,176.56,176.51,8.87767252]
[1730077919639,20.0,176.57,176.52,8.87767252]
[1730077919823,14.54077252,176.58,176.5,0.25098]
[1730077919824,14.54077252,176.58,176.53,8.87767252]
[1730077920211,14.54077252,176.58,176.53,0.25098]
[1730077921614,8.87767252,176.57,176.53,0.25098]
[1730077922038,14.54077252,176.58,176.53,0.25098]
[1730077922339,8.87767252,176.57,176.53,0.25098]
[1730077922517,8.87767252,176.57,176.52,0.25098]
[1730077922718,8.87767252,176.57,176.52,9.12865252]
[1730077922916,5.6631,176.58,176.54,8.87767252]
[1730077924536,5.6631,176.58,176.53,8.87767252]
[1730077926427,5.6631,176.58,176.54,8.87767252]
[1730077927433,5.6631,176.58,176.55,8.87767252]
[1730077927630,5.6631,176.58,176.54,8.87767252]
[1730077930562,5.6631,176.58,176.52,0.25098]
[1730077930563,5.6631,176.58,176.53,8.87767252]
[1730077932525,28.5951,176.59,176.55,8.87767252]
[1730077934449,20.0,176.61,176.57,8.87767252]
[1730077934747,36.18887252,176.63,176.57,8.87767252]
[1730077935130,36.18887252,176.63,176.58,8.87767252]
[1730077937846,36.18887252,176.63,176.57,8.87767252]
[1730077938428,36.18887252,176.63,176.58,8.87767252]
[1730077939443,27.3112,176.63,176.58,8.87767252]
[1730077939837,27.3112,176.63,176.61,8.87767252]
[1730077939838,21.6496,176.63,176.61,8.87767252]
[1730077940162,21.6496,176.63,176.52,24.227864]
[1730077940163,27.3112,176.63,176.6,8.87767252]
[1730077941226,27.3112,176.63,176.59,8.87767252]
[1730077941425,36.18887252,176.63,176.58,8.87767252]
[1730077941738,8.87767252,176.62,176.57,8.87767252]
[1730077942246,8.87767252,176.62,176.56,8.87767252]
[1730077942937,5.6621,176.61,176.56,8.87767252]
[1730077943138,14.53977252,176.61,176.56,8.87767252]
[1730077945044,14.53977252,176.61,176.55,8.87767252]
[1730077947752,28.87767252,176.6,176.48,5.88968481]
[1730077947931,8.87767252,176.57,176.51,8.87767252]
[1730077948132,8.87767252,176.56,176.5,8.87767252]
[1730077948636,8.87767252,176.56,176.51,8.87767252]
[1730077950250,14.54167252,176.56,176.51,8.87767252]
[1730077950746,14.54167252,176.56,176.5,8.87767252]
[1730077951333,14.54167252,176.56,176.51,8.87767252]
[1730077951945,5.664,176.56,176.51,8.87767252]
[1730077953075,5.6628,176.6,176.55,8.87767252]
[1730077953252,14.54047252,176.6,176.55,8.87767252]
[1730077953957,14.54047252,176.6,176.54,8.87767252]
[1730077954859,8.87767252,176.59,176.54,8.87767252]
[1730077956157,14.54067252,176.59,176.54,8.87767252]
[1730077956955,14.54067252,176.59,176.46,24.127864]
[1730077957261,14.54067252,176.59,176.53,8.87767252]
[1730077958155,5.663,176.59,176.54,8.87767252]
[1730077960956,8.87767252,176.56,176.5,8.87767252]
[1730077961156,25.54417252,176.55,176.5,8.87767252]
[1730077961666,25.54417252,176.55,176.49,8.87767252]
[1730077962176,14.54207252,176.54,176.42,0.5]
[1730077962356,14.54207252,176.54,176.49,8.87767252]
[1730077963068,8.87767252,176.53,176.43,5.8925646]
[1730077963258,8.87767252,176.51,176.43,5.8925646]
[1730077963452,8.87767252,176.5,176.45,8.87767252]
[1730077964167,14.54367252,176.49,176.43,8.87767252]
[1730077964476,8.87767252,176.48,176.43,8.87767252]
[1730077965062,14.54417252,176.48,176.43,8.87767252]
[1730077965664,14.54417252,176.48,176.42,8.87767252]
[1730077965962,14.54417252,176.48,176.43,0.25098]
[1730077968046,14.54417252,176.48,176.43,9.12865252]
[1730077968257,5.6665,176.48,176.43,9.12865252]
[1730077968870,5.6665,176.48,176.44,8.87767252]
[1730077969853,30.71827252,176.49,176.44,8.87767252]
[1730077974150,21.8406,176.49,176.44,8.87767252]
[1730077974357,16.1745,176.49,176.46,8.87767252]
[1730077974561,16.1745,176.49,176.43,0.25098]
[1730077974562,11.8236,176.51,176.47,8.87767252]
[1730077978484,11.8236,176.51,176.46,8.87767252]
[1730077979862,20.70127252,176.51,176.46,8.87767252]
[1730077989685,11.8236,176.51,176.46,8.87767252]
[1730078001569,20.70127252,176.51,176.46,8.87767252]
[1730078002769,20.70127252,176.51,176.45,8.87767252]
[1730078003068,8.87767252,176.48,176.43,0.12549]
[1730078004388,14.54427252,176.48,176.43,0.12549]
[1730078004588,14.54427252,176.48,176.43,9.00316252]
[1730078007194,14.54427252,176.48,176.43,0.12549]
[1730078008187,14.54427252,176.48,176.36,5.8926401]
[1730078008390,8.87767252,176.45,176.4,8.87767252]
[1730078008595,8.87767252,176.45,176.39,8.87767252]
[1730078008898,15.42457252,176.46,176.4,8.87767252]
[1730078009396,8.87767252,176.44,176.39,8.87767252]
[1730078009600,28.87767252,176.45,176.4,8.87767252]
[1730078010280,5.6676,176.44,176.4,8.87767252]
[1730078010478,14.54527252,176.44,176.34,5.89455067]
[1730078010670,8.87767252,176.43,176.38,8.87767252]
[1730078010874,8.87767252,176.42,176.36,8.87767252]
[1730078011093,8.87767252,176.41,176.36,8.87767252]
[1730078011288,8.87767252,176.41,176.35,8.87767252]
[1730078011688,8.87767252,176.41,176.36,8.87767252]
[1730078012475,5.6689,176.4,176.35,8.87767252]
[1730078013083,5.6689,176.4,176.3,6.39595453]
[1730078013084,14.54657252,176.4,176.34,8.87767252]
[1730078013295,8.87767252,176.39,176.33,8.87767252]
[1730078013609,20.80727252,176.4,176.34,8.87767252]
[1730078016298,21.8918,176.41,176.32,24.027864]
[1730078016481,21.8918,176.41,176.37,8.87767252]
[1730078017502,25.6679,176.43,176.32,24.027864]
[1730078017687,8.87767252,176.42,176.37,8.87767252]
[1730078018609,8.87767252,176.4,176.35,8.87767252]
[1730078019117,5.6686,176.41,176.36,8.87767252]
[1730078019399,20.0,176.43,176.37,8.87767252]
[1730078019599,34.54527252,176.44,176.38,8.87767252]
[1730078019800,5.6676,176.44,176.4,8.87767252]
[1730078019996,5.6676,176.44,176.41,8.87767252]
[1730078020198,28.1111,176.45,176.41,8.87767252]
[1730078020702,28.1111,176.45,176.4,8.87767252]
[1730078021802,28.1111,176.45,176.32,24.527864]
[1730078021803,22.4437,176.45,176.43,8.87767252]
[1730078024694,6.4505,176.49,176.44,8.87767252]
[1730078024902,6.4505,176.49,176.45,8.87767252]
[1730078025085,8.87767252,176.48,176.43,8.87767252]
[1730078025281,8.87767252,176.46,176.41,8.87767252]
[1730078025495,8.87767252,176.45,176.4,8.87767252]
[1730078025691,8.87767252,176.46,176.4,8.87767252]
[1730078025987,20.0,176.48,176.43,8.87767252]
[1730078026193,20.0,176.48,176.44,8.87767252]
[1730078026701,25.6666,176.48,176.44,8.87767252]
[1730078027004,25.6666,176.48,176.43,8.87767252]
[1730078028388,25.6666,176.48,176.44,8.87767252]
[1730078028581,25.6666,176.48,176.41,0.12549]
[1730078028786,25.6666,176.48,176.44,8.87767252]
[1730078029008,25.6666,176.48,176.41,0.12549]
[1730078029221,25.6666,176.48,176.44,8.87767252]
[1730078029783,34.54427252,176.48,176.41,0.12549]
[1730078029995,8.87767252,176.47,176.41,8.87767252]
[1730078030308,8.87767252,176.46,176.41,8.87767252]
[1730078030492,8.87767252,176.46,176.4,8.87767252]
[1730078031602,8.87767252,176.46,176.32,0.82549]
[1730078031603,14.54477252,176.46,176.41,8.87767252]
[1730078032301,5.6671,176.46,176.42,8.87767252]
[1730078032695,5.6667,176.47,176.43,8.87767252]
[1730078034192,5.6667,176.47,176.34,0.2]
[1730078034193,6.4505,176.49,176.45,8.87767252]
[1730078034386,6.4505,176.49,176.46,8.87767252]
[1730078034791,6.4505,176.49,176.45,8.87767252]
[1730078035508,6.4505,176.49,176.46,8.87767252]
[1730078035715,16.3459,176.5,176.47,8.87767252]
[1730078036091,16.3459,176.5,176.46,8.87767252]
[1730078036399,30.88927252,176.5,176.45,8.87767252]
[1730078036599,22.0116,176.5,176.45,8.87767252]
[1730078037006,22.0116,176.5,176.46,8.87767252]
[1730078037694,16.3459,176.5,176.46,8.87767252]
[1730078040708,16.3459,176.5,176.37,0.1]
[1730078040709,30.88947252,176.5,176.41,24.027864]
[1730078040886,30.88947252,176.5,176.44,8.87767252]
[1730078041906,30.88947252,176.5,176.45,8.87767252]
[1730078042120,16.3459,176.5,176.46,8.87767252]
[1730078043135,16.3459,176.5,176.47,8.87767252]
[1730078043799,16.3459,176.5,176.48,8.87767252]
[1730078045813,6.5203,176.54,176.49,8.87767252]
[1730078045998,22.4815,176.59,176.53,8.87767252]
[1730078046199,22.4815,176.59,176.55,8.87767252]
[1730078046909,28.1444,176.59,176.55,8.87767252]
[1730078047920,8.87767252,176.58,176.52,8.87767252]
[1730078049311,14.54087252,176.58,176.53,8.87767252]
[1730078049995,8.87767252,176.57,176.52,8.87767252]
[1730078050307,8.87767252,176.56,176.42,0.1]
[1730078050632,8.87767252,176.56,176.5,8.87767252]
[1730078050792,8.87767252,176.55,176.5,8.87767252]
[1730078050999,8.87767252,176.55,176.49,8.87767252]
[1730078051317,8.87767252,176.54,176.49,8.87767252]
[1730078051808,8.87767252,176.55,176.49,8.87767252]
[1730078052318,8.87767252,176.56,176.5,8.87767252]
[1730078053298,5.6641,176.55,176.51,8.87767252]
[1730078054917,5.6641,176.55,176.5,8.87767252]
[1730078057205,8.87767252,176.54,176.49,8.87767252]
[1730078057394,8.87767252,176.54,176.43,0.25098]
[1730078057595,5.6641,176.55,176.4,41.62949847]
[1730078057596,31.08477252,176.52,176.4,5.91880839]
[1730078057811,31.08477252,176.52,176.46,8.87767252]
[1730078058139,8.87767252,176.5,176.45,8.87767252]
[1730078058323,8.87767252,176.5,176.4,41.42949847]
[1730078058324,8.87767252,176.5,176.44,8.87767252]
[1730078059401,14.54357252,176.5,176.44,8.87767252]
[1730078059608,5.6659,176.5,176.45,8.87767252]
[1730078059917,14.54357252,176.5,176.45,8.87767252]
[1730078061519,5.6659,176.5,176.45,8.87767252]
[1730078061823,5.6659,176.5,176.46,8.87767252]
[1730078064403,5.6659,176.5,176.41,24.027864]
[1730078064404,5.6659,176.5,176.45,8.87767252]
[1730078066621,8.87767252,176.5,176.45,8.87767252]
[1730078067927,14.54357252,176.5,176.45,8.87767252]
[1730078072407,8.87767252,176.48,176.41,23.776884]
[1730078072711,5.6659,176.5,176.4,14.79821318]
[1730078072712,8.87767252,176.46,176.4,14.79821318]
[1730078072919,8.87767252,176.46,176.4,8.87767252]
[1730078073828,14.54467252,176.46,176.41,0.12549]
[1730078074515,5.667,176.46,176.41,9.00316252]
[1730078075221,14.54467252,176.46,176.4,8.87767252]
[1730078076411,14.54467252,176.46,176.39,0.12549]
[1730078076412,8.87767252,176.44,176.38,14.79918382]
[1730078076744,8.87767252,176.42,176.37,8.87767252]
[1730078076917,8.87767252,176.41,176.33,6.90623706]
[1730078077244,8.87767252,176.41,176.36,8.87767252]
[1730078078121,14.54627252,176.41,176.36,8.87767252]
[1730078079434,8.87767252,176.42,176.36,8.87767252]
[1730078079636,8.87767252,176.42,176.31,5.92325505]
[1730078079825,8.87767252,176.42,176.36,8.87767252]
[1730078080535,8.87767252,176.41,176.35,8.87767252]
[1730078080830,14.54637252,176.41,176.35,8.87767252]
[1730078081330,5.6687,176.41,176.37,8.87767252]
[1730078082822,5.6687,176.41,176.32,24.027864]
[1730078082823,20.0,176.45,176.4,8.87767252]
[1730078083027,30.76637252,176.46,176.4,8.87767252]
[1730078083219,30.76637252,176.46,176.32,24.027864]
[1730078083220,5.6673,176.45,176.41,8.87767252]
[1730078083420,5.6673,176.45,176.42,8.87767252]
[1730078084331,21.8887,176.46,176.32,24.227864]
[1730078084332,21.8887,176.46,176.43,8.87767252]
[1730078086252,27.5889,176.5,176.45,8.87767252]
[1730078086418,27.5889,176.5,176.46,8.87767252]
[1730078087336,27.5889,176.5,176.4,35.51069008]
[1730078087337,36.46657252,176.5,176.45,8.87767252]
[1730078087811,20.0,176.49,176.45,8.87767252]
[1730078090140,27.5889,176.5,176.46,8.87767252]
[1730078091635,21.923,176.5,176.49,8.87767252]
[1730078091940,21.923,176.5,176.48,8.87767252]
[1730078094837,36.46637252,176.5,176.45,8.87767252]
[1730078095742,27.5887,176.5,176.45,8.87767252]
[1730078096124,36.46637252,176.5,176.44,8.87767252]
[1730078096633,36.46637252,176.5,176.4,35.51069008]
[1730078096634,36.46637252,176.5,176.45,8.87767252]
[1730078097921,20.0,176.49,176.44,8.87767252]
[1730078098129,20.0,176.49,176.43,8.87767252]
[1730078098130,28.87767252,176.49,176.43,8.87767252]
[1730078098642,28.87767252,176.49,176.44,8.87767252]
[1730078100348,5.6663,176.48,176.44,8.87767252]
[1730078100939,5.6663,176.48,176.35,6.02016845]
[1730078100940,5.6663,176.48,176.43,8.87767252]
[1730078101135,8.87767252,176.46,176.4,8.87767252]
[1730078101648,28.87767252,176.47,176.42,8.87767252]
[1730078101851,20.0,176.47,176.42,8.87767252]
[1730078102024,20.0,176.47,176.43,8.87767252]
[1730078102229,5.6663,176.48,176.44,8.87767252]
[1730078102530,25.666,176.49,176.44,8.87767252]
[1730078102932,5.666,176.49,176.45,8.87767252]